fUSD/lending_fUSD_20250513
["ID","MTS","AMOUNT","RATE_DAILY","PERIOD"]
[360921552,1747147841734,-1845.97,0.0001099,2]
[360921553,1747147841743,-400.0,0.0001099,2]
[360921554,1747147841753,-400.0,0.0001099,2]
[360921555,1747147841762,-476.03,0.0001099,2]
[360921556,1747147841774,-400.0,0.0001099,2]
[360921557,1747147841783,-400.0,0.0001099,2]
[360921558,1747147841792,-400.0,0.0001099,2]
[360921559,1747147841802,-400.0,0.0001099,2]
[360921560,1747147841811,-400.0,0.0001099,2]
[360921561,1747147841821,-400.0,0.0001099,2]
[360921562,1747147841830,-528.46,0.0001099,2]
[360921563,1747147841840,-542.52,0.0001099,2]
[360921564,1747147841849,-751.21,0.0001099,2]
[360921565,1747147841859,-400.0,0.0001099,2]
[360921566,1747147841868,-400.0,0.0001099,2]
[360921567,1747147841877,-400.0,0.0001099,2]
[360921568,1747147841887,-400.0,0.0001099,2]
[360921569,1747147841896,-400.0,0.0001099,2]
[360921570,1747147841905,-2199.8,0.0001099,2]
[360921571,1747147841914,-1101.08,0.0001099,2]
[360921572,1747147841924,-400.0,0.0001099,2]
[360921573,1747147841933,-400.0,0.0001099,2]
[360921574,1747147841943,-621.98,0.0001099,2]
[360921575,1747147841953,-400.0,0.0001099,2]
[360921576,1747147841962,-400.0,0.0001099,2]
[360921577,1747147841971,-400.0,0.0001099,2]
[360921578,1747147841981,-400.0,0.0001099,2]
[360921579,1747147841990,-869.05,0.0001099,2]
[360921580,1747147842000,-400.0,0.0001099,2]
[360921581,1747147842010,-463.78,0.0001099,2]
[360921582,1747147842019,-519.73115026,0.0001099,2]
[360921583,1747147842031,-400.0,0.0001099,2]
[360921584,1747147842040,-1397.65,0.0001099,2]
[360921585,1747147842049,-642.0,0.0001099,2]
[360921586,1747147842059,-400.0,0.0001099,2]
[360921587,1747147842068,-400.0,0.0001099,2]
[360921588,1747147842078,-400.0,0.0001099,2]
[360921589,1747147842087,-400.0,0.0001099,2]
[360921590,1747147842096,-400.0,0.0001099,2]
[360921591,1747147842106,-400.0,0.0001099,2]
[360921592,1747147842115,-400.0,0.0001099,2]
[360921593,1747147842125,-562.64,0.0001099,2]
[360921594,1747147842134,-400.0,0.0001099,2]
[360921595,1747147842144,-509.85,0.0001099,2]
[360921596,1747147842154,-400.0,0.0001099,2]
[360921597,1747147842163,-400.0,0.0001099,2]
[360921598,1747147842174,-842.33,0.0001099,2]
[360921599,1747147842183,-400.0,0.0001099,2]
[360921600,1747147842193,-400.0,0.0001099,2]
[360921601,1747147842202,-507.11,0.0001099,2]
[360921602,1747147842212,-400.0,0.0001099,2]
[360921603,1747147842222,-400.0,0.0001099,2]
[360921604,1747147842231,-400.0,0.0001099,2]
[360921605,1747147842241,-405.01,0.0001099,2]
[360921606,1747147842250,-400.0,0.0001099,2]
[360921607,1747147842260,-400.0,0.0001099,2]
[360921608,1747147842269,-400.0,0.0001099,2]
[360921609,1747147842282,-400.0,0.0001099,2]
[360921610,1747147842292,-479.8,0.0001099,2]
[360921611,1747147842302,-526.43,0.0001099,2]
[360921612,1747147842311,-400.0,0.0001099,2]
[360921613,1747147842321,-825.82,0.0001099,2]
[360921614,1747147842330,-624.76,0.0001099,2]
[360921615,1747147842339,-400.0,0.0001099,2]
[360921616,1747147842349,-400.0,0.0001099,2]
[360921617,1747147842358,-400.0,0.0001099,2]
[360921618,1747147842368,-405.39,0.0001099,2]
[360921619,1747147842377,-865.75,0.0001099,2]
[360921620,1747147842386,-400.0,0.0001099,2]
[360921621,1747147842396,-400.0,0.0001099,2]
[360921622,1747147842405,-400.0,0.0001099,2]
[360921623,1747147842415,-400.0,0.0001099,2]
[360921624,1747147842424,-404.29,0.0001099,2]
[360921625,1747147842433,-400.0,0.0001099,2]
[360921626,1747147842443,-400.0,0.0001099,2]
[360921627,1747147842452,-400.0,0.0001099,2]
[360921628,1747147842461,-400.0,0.0001099,2]
[360921629,1747147842471,-400.0,0.0001099,2]
[360921630,1747147842480,-400.0,0.0001099,2]
[360921631,1747147842489,-616.73,0.0001099,2]
[360921632,1747147842498,-400.0,0.0001099,2]
[360921633,1747147842508,-432.4,0.0001099,2]
[360921634,1747147842517,-400.0,0.0001099,2]
[360921635,1747147842528,-400.0,0.0001099,2]
[360921636,1747147842539,-400.0,0.0001099,2]
[360921637,1747147842551,-400.0,0.0001099,2]
[360921638,1747147842562,-400.0,0.0001099,2]
[360921639,1747147842572,-400.0,0.0001099,2]
[360921640,1747147842582,-400.0,0.0001099,2]
[360921641,1747147842591,-400.0,0.0001099,2]
[360921642,1747147842600,-400.0,0.0001099,2]
[360921643,1747147842610,-400.0,0.0001099,2]
[360921645,1747147842619,-400.0,0.0001099,2]
[360921646,1747147842630,-400.0,0.0001099,2]
[360921647,1747147842639,-430.34,0.0001099,2]
[360921648,1747147842649,-400.0,0.0001099,2]
[360921649,1747147842659,-400.0,0.0001099,2]
[360921650,1747147842668,-1412.12,0.0001099,2]
[360921651,1747147842678,-400.0,0.0001099,2]
[360921652,1747147842687,-400.0,0.0001099,2]
[360921653,1747147842696,-471.7,0.0001099,2]
[360921654,1747147842705,-400.0,0.0001099,2]
[360921656,1747147842714,-400.0,0.0001099,2]
[360921657,1747147842723,-465.36,0.0001099,2]
[360921659,1747147842733,-712.25,0.0001099,2]
[360921661,1747147842742,-400.0,0.0001099,2]
[360921663,1747147842751,-1031.0,0.0001099,2]
[360921665,1747147842760,-400.65,0.0001099,2]
[360921667,1747147842770,-400.0,0.0001099,2]
[360921669,1747147842780,-400.0,0.0001099,2]
[360921670,1747147842790,-400.0,0.0001099,2]
[360921671,1747147842799,-400.0,0.0001099,2]
[360921672,1747147842808,-526.71,0.0001099,2]
[360921673,1747147842818,-400.0,0.0001099,2]
[360921674,1747147842828,-400.0,0.0001099,2]
[360921675,1747147842838,-2676.9,0.0001099,2]
[360921676,1747147842847,-400.0,0.0001099,2]
[360921677,1747147842856,-649.14,0.0001099,2]
[360921678,1747147842866,-969.89,0.0001099,2]
[360921680,1747147842875,-400.0,0.0001099,2]
[360921682,1747147842884,-400.0,0.0001099,2]
[360921684,1747147842893,-400.0,0.0001099,2]
[360921686,1747147842903,-400.0,0.0001099,2]
[360921687,1747147842913,-400.0,0.0001099,2]
[360921689,1747147842922,-494.96,0.0001099,2]
[360921692,1747147842932,-400.0,0.0001099,2]
[360921693,1747147842941,-482.02,0.0001099,2]
[360921695,1747147842951,-400.0,0.0001099,2]
[360921696,1747147842960,-400.0,0.0001099,2]
[360921697,1747147842970,-400.0,0.0001099,2]
[360921698,1747147842979,-400.0,0.0001099,2]
[360921699,1747147842989,-400.0,0.0001099,2]
[360921700,1747147842998,-400.0,0.0001099,2]
[360921701,1747147843008,-400.0,0.0001099,2]
[360921702,1747147843018,-400.0,0.0001099,2]
[360921703,1747147843029,-400.0,0.0001099,2]
[360921704,1747147843038,-400.0,0.0001099,2]
[360921705,1747147843048,-400.0,0.0001099,2]
[360921706,1747147843058,-400.0,0.0001099,2]
[360921707,1747147843067,-400.0,0.0001099,2]
[360921708,1747147843077,-400.0,0.0001099,2]
[360921709,1747147843086,-400.0,0.0001099,2]
[360921710,1747147843096,-400.0,0.0001099,2]
[360921711,1747147843105,-400.0,0.0001099,2]
[360921712,1747147843116,-400.0,0.0001099,2]
[360921713,1747147843126,-400.0,0.0001099,2]
[360921714,1747147843135,-400.0,0.0001099,2]
[360921715,1747147843145,-400.0,0.0001099,2]
[360921716,1747147843154,-403.41635585,0.0001099,2]
[360921717,1747147843163,-1355.31,0.0001099,2]
[360921718,1747147843173,-495.09706035,0.0001099,2]
[360921719,1747147843183,-1432.47,0.0001099,2]
[360921720,1747147843191,-888.74,0.0001099,2]
[360921721,1747147843201,-400.0,0.0001099,2]
[360921722,1747147843211,-400.0,0.0001099,2]
[360921723,1747147843221,-1477.69,0.0001099,2]
[360921724,1747147843230,-522.93856705,0.0001099,2]
[360921725,1747147843240,-400.0,0.0001099,2]
[360921726,1747147843249,-570.0,0.0001099,2]
[360921727,1747147843259,-475.59,0.0001099,2]
[360921728,1747147843269,-400.0,0.0001099,2]
[360921729,1747147843281,-500.0,0.0001099,2]
[360921730,1747147843291,-97981.91769781,0.0001099,2]
[360921733,1747147844070,-5776.95230219,0.0001099,2]
[360921734,1747147844080,-400.0,0.0001099,2]
[360921735,1747147844089,-400.0,0.0001099,2]
[360921736,1747147844098,-948.05,0.0001099,2]
[360921737,1747147844108,-400.0,0.0001099,2]
[360921738,1747147844117,-400.0,0.0001099,2]
[360921739,1747147844127,-1791.35,0.0001099,2]
[360921740,1747147844136,-559.95,0.0001099,2]
[360921741,1747147844145,-949.06,0.0001099,2]
[360921742,1747147844154,-1119.72,0.0001099,2]
[360921743,1747147844164,-400.0,0.0001099,2]
[360921744,1747147844173,-554.07,0.0001099,2]
[360921745,1747147844183,-400.0,0.0001099,2]
[360921746,1747147844193,-400.0,0.0001099,2]
[360921747,1747147844202,-400.0,0.0001099,2]
[360921748,1747147844211,-400.0,0.0001099,2]
[360921749,1747147844220,-400.0,0.0001099,2]
[360921750,1747147844230,-782.31,0.0001099,2]
[360921751,1747147844239,-400.0,0.0001099,2]
[360921752,1747147844248,-2461.73,0.0001099,2]
[360921753,1747147844257,-804.17,0.0001099,2]
[360921754,1747147844266,-400.0,0.0001099,2]
[360921755,1747147844276,-400.0,0.0001099,2]
[360921756,1747147844285,-400.0,0.0001099,2]
[360921757,1747147844294,-400.0,0.0001099,2]
[360921758,1747147844304,-400.0,0.0001099,2]
[360921759,1747147844313,-1719.11,0.0001099,2]
[360921760,1747147844322,-434.44,0.0001099,2]
[360921761,1747147844332,-664.25,0.0001099,2]
[360921762,1747147844341,-400.0,0.0001099,2]
[360921763,1747147844350,-757.66,0.0001099,2]
[360921764,1747147844359,-400.0,0.0001099,2]
[360921765,1747147844368,-400.0,0.0001099,2]
[360921766,1747147844377,-400.0,0.0001099,2]
[360921767,1747147844386,-4495.37,0.0001099,2]
[360921768,1747147844395,-858.08,0.0001099,2]
[360921769,1747147844405,-457.71,0.0001099,2]
[360921770,1747147844414,-500.0,0.0001099,2]
[360921771,1747147844423,-1659.34,0.0001099,2]
[360921772,1747147844432,-400.0,0.0001099,2]
[360921773,1747147844441,-168.29708641,0.0001099,2]
[360921774,1747147844450,-400.0,0.0001099,2]
[360921775,1747147844460,-2782.4,0.0001099,2]
[360921776,1747147844469,-400.0,0.0001099,2]
[360921777,1747147844478,-400.0,0.0001099,2]
[360921778,1747147844487,-3890.31,0.0001099,2]
[360921779,1747147844496,-1549.07,0.0001099,2]
[360921780,1747147844505,-400.0,0.0001099,2]
[360921781,1747147844515,-499.87,0.0001099,2]
[360921782,1747147844526,-400.0,0.0001099,2]
[360921783,1747147844535,-1458.68,0.0001099,2]
[360921784,1747147844544,-534.46,0.0001099,2]
[360921785,1747147844555,-728.98,0.0001099,2]
[360921786,1747147844564,-400.0,0.0001099,2]
[360921787,1747147844573,-573.05,0.0001099,2]
[360921788,1747147844582,-400.0,0.0001099,2]
[360921789,1747147844591,-400.0,0.0001099,2]
[360921790,1747147844601,-404.45081963,0.0001099,2]
[360921791,1747147844610,-400.0,0.0001099,2]
[360921792,1747147844619,-1480.0,0.0001099,2]
[360921793,1747147844628,-400.0,0.0001099,2]
[360921794,1747147844639,-500.0,0.0001099,2]
[360921795,1747147844649,-460.48,0.0001099,2]
[360921796,1747147844659,-400.0,0.0001099,2]
[360921797,1747147844669,-850.53,0.0001099,2]
[360921798,1747147844680,-508.05,0.0001099,2]
[360921799,1747147844692,-216.34286311,0.0001099,2]
[360921800,1747147844702,-1344.92,0.0001099,2]
[360921801,1747147844713,-400.0,0.0001099,2]
[360921802,1747147844723,-2510.34,0.0001099,2]
[360921803,1747147844732,-400.0,0.0001099,2]
[360921804,1747147844741,-889.58,0.0001099,2]
[360921805,1747147844750,-577.85,0.0001099,2]
[360921806,1747147844759,-400.0,0.0001099,2]
[360921807,1747147844768,-400.0,0.0001099,2]
[360921808,1747147844779,-699.37,0.0001099,2]
[360921809,1747147844788,-400.0,0.0001099,2]
[360921810,1747147844797,-400.0,0.0001099,2]
[360921811,1747147844806,-400.0,0.0001099,2]
[360921812,1747147844815,-400.0,0.0001099,2]
[360921813,1747147844824,-400.0,0.0001099,2]
[360921814,1747147844834,-970.56,0.0001099,2]
[360921815,1747147844843,-400.0,0.0001099,2]
[360921816,1747147844852,-3958.72160024,0.0001099,2]
[360921817,1747147844865,-24724.09839976,0.0001099,2]
[360921818,1747147844874,-1328.46,0.0001099,2]
[360921819,1747147844883,-400.0,0.0001099,2]
[360921820,1747147844893,-400.0,0.0001099,2]
[360921821,1747147844902,-400.0,0.0001099,2]
[360921822,1747147844911,-1405.33,0.0001099,2]
[360921823,1747147844920,-1421.54,0.0001099,2]
[360921824,1747147844930,-3184.95,0.0001099,2]
[360921825,1747147844939,-400.0,0.0001099,2]
[360921826,1747147844949,-400.0,0.0001099,2]
[360921827,1747147844958,-400.0,0.0001099,2]
[360921828,1747147844967,-2186.36,0.0001099,2]
[360921829,1747147844976,-400.0,0.0001099,2]
[360921830,1747147844986,-846.92,0.0001099,2]
[360921831,1747147844995,-474.87,0.0001099,2]
[360921832,1747147845005,-11147.29,0.0001099,2]
[360921833,1747147845014,-480.63,0.0001099,2]
[360921834,1747147845024,-572.64,0.0001099,2]
[360921835,1747147845035,-2892.97,0.0001099,2]
[360921836,1747147845044,-400.0,0.0001099,2]
[360921837,1747147845054,-392.07093228,0.0001099,2]
[360921838,1747147845075,-106.32906772,0.0001099,2]
[360921839,1747147845085,-507.78,0.0001099,2]
[360921840,1747147845094,-315.11858228,0.0001099,2]
[360921841,1747147845106,-1280.37141772,0.0001099,2]
[360921842,1747147845115,-2191.12,0.0001099,2]
[360921843,1747147845124,-1078.58,0.0001099,2]
[360921844,1747147845134,-403.76731672,0.0001099,2]
[360921845,1747147845143,-400.0,0.0001099,2]
[360921846,1747147845152,-477.52,0.0001099,2]
[360921847,1747147845161,-400.0,0.0001099,2]
[360921848,1747147845171,-1246.04,0.0001099,2]
[360921849,1747147845180,-412.35,0.0001099,2]
[360921850,1747147845191,-271.51202894,0.0001099,2]
[360921851,1747147845200,-670.38,0.0001099,2]
[360921852,1747147845209,-400.0,0.0001099,2]
[360921853,1747147845219,-403.67556797,0.0001099,2]
[360921854,1747147845228,-1680.34,0.0001099,2]
[360921855,1747147845238,-219.92191762,0.0001099,2]
[360921856,1747147845247,-406.78,0.0001099,2]
[360921857,1747147845257,-769.48,0.0001099,2]
[360921858,1747147845267,-5507.76,0.0001099,2]
[360921859,1747147845276,-400.0,0.0001099,2]
[360921860,1747147845286,-400.0,0.0001099,2]
[360921861,1747147845295,-629.71,0.0001099,2]
[360921862,1747147845304,-1263.94,0.0001099,2]
[360921863,1747147845313,-400.0,0.0001099,2]
[360921864,1747147845323,-10126.62,0.0001099,2]
[360921865,1747147845332,-1326.04,0.0001099,2]
[360921866,1747147845341,-1749.03,0.0001099,2]
[360921867,1747147845351,-974.29,0.0001099,2]
[360921868,1747147845361,-400.0,0.0001099,2]
[360921869,1747147845371,-2000.0,0.0001099,2]
[360921870,1747147845380,-455.97000198,0.0001099,2]
[360921871,1747147845390,-3579.9,0.0001099,2]
[360921872,1747147845399,-915.32,0.0001099,2]
[360921873,1747147845409,-653.07,0.0001099,2]
[360921874,1747147845418,-531.79,0.0001099,2]
[360921875,1747147845427,-1167.36,0.0001099,2]
[360921876,1747147845437,-4618.14,0.0001099,2]
[360921877,1747147845446,-400.0,0.0001099,2]
[360921878,1747147845455,-400.0,0.0001099,2]
[360921879,1747147845464,-400.0,0.0001099,2]
[360921880,1747147845473,-400.0,0.0001099,2]
[360921881,1747147845483,-400.0,0.0001099,2]
[360921882,1747147845492,-584.77,0.0001099,2]
[360921883,1747147845501,-551.69,0.0001099,2]
[360921884,1747147845510,-400.0,0.0001099,2]
[360921885,1747147845519,-400.0,0.0001099,2]
[360921886,1747147845530,-400.0,0.0001099,2]
[360921887,1747147845539,-1861.82,0.0001099,2]
[360921888,1747147845549,-489.84,0.0001099,2]
[360921889,1747147845561,-289.21193616,0.0001099,2]
[360921890,1747147845570,-628.8,0.0001099,2]
[360921891,1747147845579,-400.0,0.0001099,2]
[360921892,1747147845588,-400.0,0.0001099,2]
[360921893,1747147845598,-1090.1,0.0001099,2]
[360921894,1747147845607,-618.74,0.0001099,2]
[360921895,1747147845617,-1500.14,0.0001099,2]
[360921896,1747147845627,-400.0,0.0001099,2]
[360921897,1747147845637,-400.0,0.0001099,2]
[360921898,1747147845646,-719.98,0.0001099,2]
[360921899,1747147845656,-1939.68,0.0001099,2]
[360921900,1747147845665,-400.0,0.0001099,2]
[360921901,1747147845674,-643.28,0.0001099,2]
[360921902,1747147845683,-711.32,0.0001099,2]
[360921903,1747147845693,-400.0,0.0001099,2]
[360921904,1747147845702,-2792.71,0.0001099,2]
[360921905,1747147845711,-400.0,0.0001099,2]
[360921906,1747147845720,-623.4,0.0001099,2]
[360921907,1747147845729,-1093.44,0.00010991,2]
[360921908,1747147845739,-408.61,0.00010991,2]
[360921909,1747147845748,-400.0,0.00010991,2]
[360921910,1747147845757,-400.0,0.00010991,2]
[360921911,1747147845767,-400.0,0.00010991,2]
[360921912,1747147845776,-400.0,0.00010991,2]
[360921913,1747147845786,-2334.43,0.00010991,2]
[360921914,1747147845796,-1002.78,0.00010991,2]
[360921915,1747147845805,-400.0,0.00010991,2]
[360921916,1747147845815,-400.0,0.00010991,2]
[360921917,1747147845824,-400.0,0.00010991,2]
[360921918,1747147845834,-400.0,0.00010991,2]
[360921919,1747147845844,-454.55,0.00010991,2]
[360921920,1747147845854,-400.0,0.00010991,2]
[360921921,1747147845863,-837.29,0.00010991,2]
[360921922,1747147845872,-400.0,0.00010991,2]
[360921923,1747147845881,-2060.8,0.00010991,2]
[360921924,1747147845891,-1679.83,0.00010991,2]
[360921925,1747147845900,-401.35,0.00010991,2]
[360921926,1747147845909,-1778.04,0.00010991,2]
[360921927,1747147845919,-615.55,0.00010991,2]
[360921928,1747147845929,-400.0,0.00010991,2]
[360921929,1747147845939,-594.96,0.00010991,2]
[360921930,1747147845949,-832.29,0.00010991,2]
[360921931,1747147845958,-1663.06,0.00010991,2]
[360921932,1747147845968,-400.0,0.00010991,2]
[360921933,1747147845978,-400.0,0.00010991,2]
[360921934,1747147845987,-400.0,0.00010991,2]
[360921935,1747147845997,-842.41,0.00010991,2]
[360921936,1747147846007,-650.88,0.00010991,2]
[360921937,1747147846016,-453.11,0.00010991,2]
[360921938,1747147846026,-574.32,0.00010991,2]
[360921939,1747147846036,-400.0,0.00010991,2]
[360921940,1747147846046,-543.12148162,0.00010991,2]
[360921941,1747147846055,-2716.54,0.00010991,2]
[360921942,1747147846065,-400.0,0.00010991,2]
[360921943,1747147846074,-1263.63,0.00010991,2]
[360921944,1747147846084,-2112.95,0.00010991,2]
[360921945,1747147846093,-400.0,0.00010991,2]
[360921946,1747147846103,-400.0,0.00010991,2]
[360921947,1747147846112,-5752.53,0.00010991,2]
[360921948,1747147846122,-2375.04,0.00010991,2]
[360921949,1747147846132,-1553.43,0.00010991,2]
[360921950,1747147846141,-2568.28,0.00010991,2]
[360921951,1747147846151,-400.0,0.00010991,2]
[360921952,1747147846161,-1584.32,0.00010991,2]
[360921953,1747147846170,-2691.65,0.00010991,2]
[360921954,1747147846179,-400.0,0.00010991,2]
[360921955,1747147846189,-634.13,0.00010991,2]
[360921956,1747147846198,-3286.38,0.00010991,2]
[360921957,1747147846207,-503.73,0.00010991,2]
[360921958,1747147846216,-500.0,0.00010991,2]
[360921959,1747147846227,-878.26,0.00010991,2]
[360921960,1747147846236,-1353.68,0.00010991,2]
[360921961,1747147846246,-2263.81,0.00010991,2]
[360921962,1747147846256,-917.6,0.00010991,2]
[360921963,1747147846266,-500.0,0.00010991,2]
[360921964,1747147846275,-425.93,0.00010991,2]
[360921965,1747147846286,-500.0,0.00010991,2]
[360921966,1747147846296,-400.0,0.00010991,2]
[360921967,1747147846306,-837.72,0.00010991,2]
[360921968,1747147846315,-1657.08,0.00010991,2]
[360921969,1747147846325,-826.53,0.00010991,2]
[360921970,1747147846334,-400.0,0.00010991,2]
[360921971,1747147846344,-400.0,0.00010991,2]
[360921972,1747147846354,-400.0,0.00010991,2]
[360921973,1747147846363,-400.0,0.00010991,2]
[360921974,1747147846373,-1790.17,0.00010991,2]
[360921975,1747147846382,-2964.19,0.00010991,2]
[360921976,1747147846391,-400.0,0.00010991,2]
[360921977,1747147846401,-507.74,0.00010991,2]
[360921978,1747147846410,-400.0,0.00010991,2]
[360921979,1747147846419,-400.0,0.00010991,2]
[360921980,1747147846429,-424.51,0.00010991,2]
[360921981,1747147846438,-400.0,0.00010991,2]
[360921982,1747147846448,-668.36,0.00010991,2]
[360921983,1747147846457,-400.0,0.00010991,2]
[360921984,1747147846467,-400.0,0.00010991,2]
[360921985,1747147846477,-400.0,0.00010991,2]
[360921986,1747147846486,-400.0,0.00010991,2]
[360921987,1747147846495,-400.0,0.00010992,2]
[360921988,1747147846505,-400.0,0.00010992,2]
[360921989,1747147846514,-400.0,0.00010992,2]
[360921990,1747147846523,-400.3849978,0.00010992,2]
[360921991,1747147846534,-400.0,0.00010992,2]
[360921992,1747147846544,-400.0,0.00010992,2]
[360921993,1747147846555,-400.0,0.00010992,2]
[360921994,1747147846565,-400.0,0.00010992,2]
[360921995,1747147846574,-400.0,0.00010992,2]
[360921996,1747147846583,-448.6662362,0.00010992,2]
[360921997,1747147846594,-400.0,0.00010992,2]
[360921998,1747147846603,-400.0,0.00010992,2]
[360921999,1747147846613,-489.29046248,0.00010992,2]
[360922000,1747147846623,-400.0,0.00010992,2]
[360922001,1747147846633,-1210.16,0.00010992,2]
[360922002,1747147846643,-400.0,0.00010992,2]
[360922003,1747147846653,-400.0,0.00010992,2]
[360922004,1747147846662,-400.0,0.00010992,2]
[360922005,1747147846672,-400.0,0.00010992,2]
[360922006,1747147846681,-439.65,0.00010992,2]
[360922007,1747147846691,-1362.64,0.00010992,2]
[360922008,1747147846700,-400.0,0.00010992,2]
[360922009,1747147846709,-400.0,0.00010992,2]
[360922010,1747147846719,-400.0,0.00010992,2]
[360922011,1747147846728,-400.0,0.00010992,2]
[360922012,1747147846738,-400.0,0.00010992,2]
[360922013,1747147846747,-400.0,0.00010992,2]
[360922014,1747147846757,-400.0,0.00010992,2]
[360922015,1747147846766,-1652.19,0.00010992,2]
[360922016,1747147846776,-400.15966007,0.00010992,2]
[360922017,1747147846787,-400.0,0.00010992,2]
[360922018,1747147846796,-400.0,0.00010992,2]
[360922019,1747147846806,-400.0,0.00010992,2]
[360922020,1747147846815,-407.07,0.00010992,2]
[360922021,1747147846825,-864.97,0.00010992,2]
[360922022,1747147846834,-400.0,0.00010992,2]
[360922023,1747147846843,-400.0,0.00010992,2]
[360922024,1747147846852,-400.0,0.00010992,2]
[360922025,1747147846865,-400.0,0.00010992,2]
[360922026,1747147846875,-343.13344437,0.00010992,2]
[360922027,1747147846885,-400.0,0.00010992,2]
[360922028,1747147846894,-632.14,0.00010992,2]
[360922029,1747147846903,-431.217014,0.00010992,2]
[360922030,1747147846913,-400.0,0.00010992,2]
[360922031,1747147846922,-400.0,0.00010992,2]
[360922032,1747147846932,-400.0,0.00010992,2]
[360922033,1747147846941,-400.0,0.00010992,2]
[360922034,1747147846950,-897.46,0.00010992,2]
[360922035,1747147846959,-400.0,0.00010992,2]
[360922036,1747147846969,-400.0,0.00010992,2]
[360922037,1747147846979,-400.0,0.00010992,2]
[360922038,1747147846989,-400.0,0.00010992,2]
[360922039,1747147846998,-400.0,0.00010992,2]
[360922040,1747147847008,-400.0,0.00010992,2]
[360922041,1747147847018,-400.0,0.00010992,2]
[360922042,1747147847029,-400.0,0.00010992,2]
[360922043,1747147847039,-1354.2,0.00010992,2]
[360922044,1747147847049,-400.0,0.00010992,2]
[360922045,1747147847059,-400.0,0.00010992,2]
[360922046,1747147847069,-1131.71,0.00010992,2]
[360922047,1747147847078,-400.0,0.00010992,2]
[360922048,1747147847087,-400.0,0.00010992,2]
[360922049,1747147847097,-400.0,0.00010992,2]
[360922050,1747147847107,-500.0,0.00010992,2]
[360922051,1747147847116,-500.0,0.00010992,2]
[360922052,1747147847125,-155.316,0.00010997,2]
[360922053,1747147847135,-155.468,0.00010997,2]
[360922054,1747147847144,-443.926,0.00010997,2]
[360922055,1747147847154,-1680.0,0.00010997,2]
[360922056,1747147847164,-420.0,0.00010997,2]
[360922057,1747147847173,-250.0,0.00010998,2]
[360922058,1747147847183,-200.0,0.00010998,2]
[360922059,1747147847192,-202.0,0.00010998,2]
[360922060,1747147847202,-250.0,0.00010999,2]
[360922061,1747147847212,-200.0,0.00010999,2]
[360922062,1747147847222,-1118.09,0.00010999,2]
[360922063,1747147847231,-1118.09,0.00010999,2]
[360922064,1747147847241,-1118.09,0.00010999,2]
[360922065,1747147847251,-1118.09,0.00010999,2]
[360922066,1747147847260,-1118.09,0.00010999,2]
[360922067,1747147847270,-1118.09,0.00010999,2]
[360922068,1747147847281,-1118.09,0.00010999,2]
[360922069,1747147847290,-1118.09,0.00010999,2]